[Event "Titled Tuesday Blitz March 21 Late 2023"]
[White "Galaktionov, Artem"]
[Black "Mazurkiewicz, Michal"]
[WhiteFideId "24175471"]
[BlackFideId "1124943"]
[WhiteElo "2340"]
[BlackElo "2054"]
[Result "1/2-1/2"]
[Round "06"]
[TimeControl "180+2"]
[Date "2023.03.21"]
[WhiteClock "0:00:30"]
[BlackClock "0:00:09"]

1. d4 {[%clk 0:02:57]}  Nf6 {[%clk 0:02:59]} 2. Nf3 {[%clk 0:02:53]}  g6 {[%clk 0:02:59]} 3. c4 {[%clk 0:02:52]}  Bg7 {[%clk 0:03:00]} 4. Nc3 {[%clk 0:02:52]}  O-O {[%clk 0:03:01]} 5. e4 {[%clk 0:02:52]}  d6 {[%clk 0:03:01]} 6. Be2 {[%clk 0:02:53]}  c5 {[%clk 0:03:02]} 7. d5 {[%clk 0:02:52]}  e6 {[%clk 0:03:02]} 8. O-O {[%clk 0:02:52]}  exd5 {[%clk 0:03:03]} 9. cxd5 {[%clk 0:02:53]}  Re8 {[%clk 0:02:57]} 10. Nd2 {[%clk 0:02:53]}  Na6 {[%clk 0:02:54]} 11. h3 {[%clk 0:02:51]}  Nc7 {[%clk 0:02:53]} 12. a4 {[%clk 0:02:51]}  b6 {[%clk 0:02:52]} 13. Re1 {[%clk 0:02:47]}  Rb8 {[%clk 0:02:51]} 14. Bf1 {[%clk 0:02:39]}  a6 {[%clk 0:02:50]} 15. Nc4 {[%clk 0:02:40]}  b5 {[%clk 0:02:49]} 16. axb5 {[%clk 0:02:40]}  axb5 {[%clk 0:02:49]} 17. Na5 {[%clk 0:02:41]}  Bd7 {[%clk 0:02:49]} 18. f3 {[%clk 0:02:35]}  b4 {[%clk 0:02:49]} 19. Ne2 {[%clk 0:02:35]}  Nb5 {[%clk 0:02:49]} 20. Bf4 {[%clk 0:02:31]}  Nh5 {[%clk 0:02:37]} 21. Nc4 {[%clk 0:02:21]}  Nxf4 {[%clk 0:02:24]} 22. Nxf4 {[%clk 0:02:22]}  Qh4 {[%clk 0:01:57]} 23. Nd3 {[%clk 0:02:12]}  Qg3 {[%clk 0:01:44]} 24. Kh1 {[%clk 0:01:30]}  Nd4 {[%clk 0:01:43]} 25. Qd2 {[%clk 0:01:21]}  Nb3 {[%clk 0:01:12]} 26. Qf2 {[%clk 0:01:01]}  Qxf2 {[%clk 0:01:12]} 27. Nxf2 {[%clk 0:01:02]}  Nxa1 {[%clk 0:01:12]} 28. Rxa1 {[%clk 0:01:03]}  Ra8 {[%clk 0:01:13]} 29. Rb1 {[%clk 0:01:02]}  Bf8 {[%clk 0:00:54]} 30. Bd3 {[%clk 0:00:55]}  Bb5 {[%clk 0:00:44]} 31. Rc1 {[%clk 0:00:50]}  Bxc4 {[%clk 0:00:44]} 32. Bxc4 {[%clk 0:00:51]}  Bg7 {[%clk 0:00:44]} 33. Nd3 {[%clk 0:00:51]}  Ra5 {[%clk 0:00:40]} 34. Re1 {[%clk 0:00:43]}  Rea8 {[%clk 0:00:38]} 35. Kh2 {[%clk 0:00:43]}  Ra1 {[%clk 0:00:38]} 36. Re2 {[%clk 0:00:43]}  Rd1 {[%clk 0:00:38]} 37. f4 {[%clk 0:00:42]}  Re8 {[%clk 0:00:27]} 38. e5 {[%clk 0:00:42]}  dxe5 {[%clk 0:00:21]} 39. fxe5 {[%clk 0:00:43]}  Rxd3 {[%clk 0:00:14]} 40. Bxd3 {[%clk 0:00:44]}  Rxe5 {[%clk 0:00:15]} 41. b3 {[%clk 0:00:40]}  Rxd5 {[%clk 0:00:09]} 42. Bc4 {[%clk 0:00:40]}  Re5 {[%clk 0:00:04]} 43. Rf2 {[%clk 0:00:37]}  Re7 {[%clk 0:00:03]} 44. Ra2 {[%clk 0:00:31]}  Be5+ {[%clk 0:00:03]} 45. Kg1 {[%clk 0:00:32]}  Bd4+ {[%clk 0:00:04]} 46. Kf1 {[%clk 0:00:32]}  Kg7 {[%clk 0:00:05]} 47. Ra6 {[%clk 0:00:29]}  f5 {[%clk 0:00:05]} 48. Re6 {[%clk 0:00:23]}  Rxe6 {[%clk 0:00:05]} 49. Bxe6 {[%clk 0:00:24]}  Kf6 {[%clk 0:00:05]} 50. Bc4 {[%clk 0:00:24]}  h5 {[%clk 0:00:06]} 51. Ke2 {[%clk 0:00:24]}  g5 {[%clk 0:00:06]} 52. g3 {[%clk 0:00:23]}  g4 {[%clk 0:00:06]} 53. hxg4 {[%clk 0:00:23]}  fxg4 {[%clk 0:00:05]} 54. Kf1 {[%clk 0:00:23]}  Kg5 {[%clk 0:00:05]} 55. Kg2 {[%clk 0:00:23]}  h4 {[%clk 0:00:06]} 56. gxh4+ {[%clk 0:00:24]}  Kxh4 {[%clk 0:00:07]} 57. Bd5 {[%clk 0:00:25]}  Kg5 {[%clk 0:00:07]} 58. Bc4 {[%clk 0:00:25]}  Kf4 {[%clk 0:00:08]} 59. Bb5 {[%clk 0:00:26]}  Be5 {[%clk 0:00:07]} 60. Bc4 {[%clk 0:00:27]}  Ke3 {[%clk 0:00:07]} 61. Be6 {[%clk 0:00:27]}  g3 {[%clk 0:00:06]} 62. Bc4 {[%clk 0:00:28]}  Kd4 {[%clk 0:00:06]} 63. Bb5 {[%clk 0:00:28]}  Kc3 {[%clk 0:00:06]} 64. Bc4 {[%clk 0:00:29]}  Kb2 {[%clk 0:00:06]} 65. Bd5 {[%clk 0:00:29]}  Kc3 {[%clk 0:00:07]} 66. Bc4 {[%clk 0:00:29]}  Kd4 {[%clk 0:00:07]} 67. Be6 {[%clk 0:00:29]}  c4 {[%clk 0:00:07]} 68. Bxc4 {[%clk 0:00:30]}  Kc3 {[%clk 0:00:08]} 69. Be6 {[%clk 0:00:30]}  Kd4 {[%clk 0:00:08]} 70. Bc4 {[%clk 0:00:30]}  Kc3 {[%clk 0:00:08]} 71. Be6 {[%clk 0:00:30]}  Kd4 {[%clk 0:00:09]} 72. Bc4 {[%clk 0:00:30]} 1/2-1/2


[Site "https://www.chess.com"]

[Event "Titled Tuesday Blitz March 21 Late 2023"]
[White "Kobo, Ori"]
[Black "Jovic, Stanoje"]
[WhiteFideId "2812320"]
[BlackFideId "905020"]
[WhiteElo "2447"]
[BlackElo "2236"]
[Result "1/2-1/2"]
[Round "06"]
[TimeControl "180+2"]
[Date "2023.03.21"]
[WhiteClock "0:00:04"]
[BlackClock "0:00:05"]

1. e4 {[%clk 0:03:00]}  c6 {[%clk 0:02:59]} 2. Nf3 {[%clk 0:03:00]}  d5 {[%clk 0:02:59]} 3. e5 {[%clk 0:03:01]}  Bg4 {[%clk 0:02:57]} 4. Be2 {[%clk 0:03:00]}  e6 {[%clk 0:02:57]} 5. O-O {[%clk 0:02:59]}  Nd7 {[%clk 0:02:56]} 6. d4 {[%clk 0:02:59]}  c5 {[%clk 0:02:57]} 7. c4 {[%clk 0:02:59]}  dxc4 {[%clk 0:02:49]} 8. d5 {[%clk 0:02:13]}  Bxf3 {[%clk 0:02:43]} 9. Bxf3 {[%clk 0:02:14]}  Nxe5 {[%clk 0:02:39]} 10. dxe6 {[%clk 0:01:44]}  Qxd1 {[%clk 0:02:36]} 11. exf7+ {[%clk 0:01:39]}  Kxf7 {[%clk 0:02:34]} 12. Rxd1 {[%clk 0:01:31]}  Nxf3+ {[%clk 0:02:32]} 13. gxf3 {[%clk 0:01:32]}  Nf6 {[%clk 0:02:32]} 14. Na3 {[%clk 0:01:31]}  c3 {[%clk 0:02:24]} 15. bxc3 {[%clk 0:01:30]}  Be7 {[%clk 0:02:22]} 16. Nc4 {[%clk 0:01:23]}  Rad8 {[%clk 0:02:19]} 17. Re1 {[%clk 0:01:16]}  Bd6 {[%clk 0:02:06]} 18. Bg5 {[%clk 0:01:08]}  b5 {[%clk 0:01:56]} 19. Ne5+ {[%clk 0:00:54]}  Bxe5 {[%clk 0:01:52]} 20. Rxe5 {[%clk 0:00:55]}  Rc8 {[%clk 0:01:45]} 21. Rb1 {[%clk 0:00:47]}  a6 {[%clk 0:01:43]} 22. a4 {[%clk 0:00:43]}  bxa4 {[%clk 0:01:00]} 23. Rb7+ {[%clk 0:00:43]}  Kg6 {[%clk 0:00:57]} 24. Be3 {[%clk 0:00:39]}  h6 {[%clk 0:00:52]} 25. Bxc5 {[%clk 0:00:34]}  Rhe8 {[%clk 0:00:50]} 26. Rxe8 {[%clk 0:00:34]}  Rxe8 {[%clk 0:00:50]} 27. Rb4 {[%clk 0:00:29]}  Re1+ {[%clk 0:00:49]} 28. Kg2 {[%clk 0:00:28]}  Ra1 {[%clk 0:00:49]} 29. Rb6 {[%clk 0:00:27]}  a3 {[%clk 0:00:47]} 30. Rxa6 {[%clk 0:00:27]}  a2 {[%clk 0:00:47]} 31. Bd4 {[%clk 0:00:27]}  Kf5 {[%clk 0:00:43]} 32. c4 {[%clk 0:00:18]}  Rd1 {[%clk 0:00:35]} 33. Bxf6 {[%clk 0:00:16]}  gxf6 {[%clk 0:00:35]} 34. Rxa2 {[%clk 0:00:16]}  Rc1 {[%clk 0:00:35]} 35. Ra5+ {[%clk 0:00:17]}  Kf4 {[%clk 0:00:33]} 36. Rc5 {[%clk 0:00:15]}  f5 {[%clk 0:00:32]} 37. Rc8 {[%clk 0:00:16]}  h5 {[%clk 0:00:32]} 38. h4 {[%clk 0:00:15]}  Rc3 {[%clk 0:00:31]} 39. c5 {[%clk 0:00:14]}  Rxf3 {[%clk 0:00:31]} 40. Rh8 {[%clk 0:00:05]}  Rc3 {[%clk 0:00:30]} 41. Rxh5 {[%clk 0:00:03]}  Rxc5 {[%clk 0:00:30]} 42. Rg5 {[%clk 0:00:04]}  Rc3 {[%clk 0:00:24]} 43. Rg3 {[%clk 0:00:05]}  Rc6 {[%clk 0:00:23]} 44. Kh3 {[%clk 0:00:04]}  Rc1 {[%clk 0:00:20]} 45. Kg2 {[%clk 0:00:04]}  Rc6 {[%clk 0:00:20]} 46. Rg8 {[%clk 0:00:05]}  Ra6 {[%clk 0:00:14]} 47. Rg7 {[%clk 0:00:05]}  Rb6 {[%clk 0:00:13]} 48. Kh3 {[%clk 0:00:04]}  Rb3+ {[%clk 0:00:13]} 49. Kg2 {[%clk 0:00:03]}  Rb6 {[%clk 0:00:13]} 50. Rg5 {[%clk 0:00:04]}  Ra6 {[%clk 0:00:12]} 51. Rg3 {[%clk 0:00:04]}  Rb6 {[%clk 0:00:12]} 52. Kf1 {[%clk 0:00:03]}  Rb1+ {[%clk 0:00:12]} 53. Kg2 {[%clk 0:00:03]}  Rb6 {[%clk 0:00:12]} 54. h5 {[%clk 0:00:03]}  Rh6 {[%clk 0:00:11]} 55. Rh3 {[%clk 0:00:03]}  Kg4 {[%clk 0:00:11]} 56. f3+ {[%clk 0:00:04]}  Kg5 {[%clk 0:00:11]} 57. Kg3 {[%clk 0:00:03]}  f4+ {[%clk 0:00:11]} 58. Kg2 {[%clk 0:00:03]}  Rxh5 {[%clk 0:00:12]} 59. Rxh5+ {[%clk 0:00:03]}  Kxh5 {[%clk 0:00:12]} 60. Kf2 {[%clk 0:00:02]}  Kh4 {[%clk 0:00:09]} 61. Kg2 {[%clk 0:00:02]}  Kg5 {[%clk 0:00:08]} 62. Kh3 {[%clk 0:00:02]}  Kh5 {[%clk 0:00:08]} 63. Kh2 {[%clk 0:00:02]}  Kg6 {[%clk 0:00:07]} 64. Kg2 {[%clk 0:00:03]}  Kf5 {[%clk 0:00:06]} 65. Kh3 {[%clk 0:00:03]}  Kg5 {[%clk 0:00:06]} 66. Kh2 {[%clk 0:00:03]}  Kh4 {[%clk 0:00:05]} 67. Kg2 {[%clk 0:00:04]}  Kh5 {[%clk 0:00:05]} 68. Kh2 {[%clk 0:00:03]}  Kh4 {[%clk 0:00:05]} 69. Kg2 {[%clk 0:00:04]} 1/2-1/2


[Site "https://www.chess.com"]

[Event "Titled Tuesday Blitz March 21 Late 2023"]
[White "Deac, Bogdan-Daniel"]
[Black "Kurtz, Eric M"]
[WhiteFideId "1226380"]
[BlackFideId "30939763"]
[WhiteElo "2649"]
[BlackElo "2627"]
[Result "1-0"]
[Round "06"]
[TimeControl "180+2"]
[Date "2023.03.21"]
[WhiteClock "0:00:13"]
[BlackClock "0:00:23"]

1. h3 {[%clk 0:03:00]}  d5 {[%clk 0:02:58]} 2. c4 {[%clk 0:02:59]}  e6 {[%clk 0:02:57]} 3. e3 {[%clk 0:02:57]}  Nf6 {[%clk 0:02:57]} 4. b3 {[%clk 0:02:54]}  Be7 {[%clk 0:02:55]} 5. Bb2 {[%clk 0:02:54]}  O-O {[%clk 0:02:55]} 6. g4 {[%clk 0:02:55]}  b6 {[%clk 0:02:51]} 7. Bg2 {[%clk 0:02:52]}  Bb7 {[%clk 0:02:51]} 8. Ne2 {[%clk 0:02:52]}  c5 {[%clk 0:02:49]} 9. O-O {[%clk 0:02:51]}  Nc6 {[%clk 0:02:47]} 10. Ng3 {[%clk 0:02:49]}  dxc4 {[%clk 0:02:44]} 11. bxc4 {[%clk 0:02:48]}  Qc7 {[%clk 0:02:45]} 12. d3 {[%clk 0:02:26]}  Rfd8 {[%clk 0:02:44]} 13. Qe2 {[%clk 0:02:27]}  Nb4 {[%clk 0:02:40]} 14. Bxb7 {[%clk 0:02:25]}  Qxb7 {[%clk 0:02:39]} 15. Rd1 {[%clk 0:02:26]}  Rd7 {[%clk 0:02:35]} 16. a3 {[%clk 0:02:23]}  Nc6 {[%clk 0:02:35]} 17. Nd2 {[%clk 0:02:17]}  Rad8 {[%clk 0:02:34]} 18. Nf3 {[%clk 0:02:17]}  Na5 {[%clk 0:02:30]} 19. Ne5 {[%clk 0:02:03]}  Rc7 {[%clk 0:02:28]} 20. g5 {[%clk 0:01:59]}  Nd7 {[%clk 0:02:26]} 21. Nh5 {[%clk 0:01:59]}  Bf8 {[%clk 0:02:24]} 22. Ng4 {[%clk 0:01:52]}  Re8 {[%clk 0:02:02]} 23. f4 {[%clk 0:01:24]}  Nc6 {[%clk 0:01:52]} 24. Rf1 {[%clk 0:01:23]}  e5 {[%clk 0:01:42]} 25. fxe5 {[%clk 0:01:05]}  Ncxe5 {[%clk 0:01:41]} 26. Bxe5 {[%clk 0:01:03]}  Rxe5 {[%clk 0:01:29]} 27. Nxe5 {[%clk 0:01:02]}  Nxe5 {[%clk 0:01:30]} 28. Nf4 {[%clk 0:00:59]}  Rc6 {[%clk 0:01:18]} 29. Qg2 {[%clk 0:00:53]}  Qc8 {[%clk 0:01:17]} 30. Rad1 {[%clk 0:00:49]}  Rd6 {[%clk 0:01:13]} 31. h4 {[%clk 0:00:47]}  Qd7 {[%clk 0:01:11]} 32. Nd5 {[%clk 0:00:47]}  Kh8 {[%clk 0:01:09]} 33. e4 {[%clk 0:00:44]}  h6 {[%clk 0:00:58]} 34. Rf5 {[%clk 0:00:29]}  Re6 {[%clk 0:00:57]} 35. Rdf1 {[%clk 0:00:26]}  Kg8 {[%clk 0:00:53]} 36. gxh6 {[%clk 0:00:21]}  Rg6 {[%clk 0:00:49]} 37. Rg5 {[%clk 0:00:18]}  Qe6 {[%clk 0:00:37]} 38. hxg7 {[%clk 0:00:13]}  Bxg7 {[%clk 0:00:37]} 39. h5 {[%clk 0:00:14]}  Rxg5 {[%clk 0:00:33]} 40. Qxg5 {[%clk 0:00:14]}  Kh7 {[%clk 0:00:31]} 41. Nf6+ {[%clk 0:00:12]}  Bxf6 {[%clk 0:00:23]} 42. Rxf6 {[%clk 0:00:13]} 1-0


[Site "https://www.chess.com"]

[Event "Titled Tuesday Blitz March 21 Late 2023"]
[White "Mustafayev, Farid"]
[Black "Makhnev, Denis"]
[WhiteFideId "13408771"]
[BlackFideId "13707647"]
[WhiteElo "2269"]
[BlackElo "2525"]
[Result "1-0"]
[Round "06"]
[TimeControl "180+2"]
[Date "2023.03.21"]
[WhiteClock "0:00:57"]
[BlackClock "0:00:29"]

1. Nf3 {[%clk 0:03:00]}  d5 {[%clk 0:02:59]} 2. g3 {[%clk 0:03:00]}  Nd7 {[%clk 0:02:58]} 3. Bg2 {[%clk 0:03:01]}  e5 {[%clk 0:02:58]} 4. d3 {[%clk 0:03:01]}  c6 {[%clk 0:02:58]} 5. O-O {[%clk 0:03:01]}  Ngf6 {[%clk 0:02:58]} 6. Nbd2 {[%clk 0:03:02]}  Bd6 {[%clk 0:02:53]} 7. c4 {[%clk 0:03:02]}  O-O {[%clk 0:02:51]} 8. cxd5 {[%clk 0:03:02]}  cxd5 {[%clk 0:02:51]} 9. e4 {[%clk 0:03:02]}  d4 {[%clk 0:02:52]} 10. Nc4 {[%clk 0:03:01]}  Bc7 {[%clk 0:02:52]} 11. a4 {[%clk 0:03:01]}  Re8 {[%clk 0:02:52]} 12. b3 {[%clk 0:03:02]}  Nf8 {[%clk 0:02:45]} 13. a5 {[%clk 0:02:55]}  Rb8 {[%clk 0:02:44]} 14. Ba3 {[%clk 0:02:51]}  Ng6 {[%clk 0:02:45]} 15. Bc5 {[%clk 0:02:41]}  b6 {[%clk 0:02:42]} 16. axb6 {[%clk 0:02:41]}  axb6 {[%clk 0:02:43]} 17. Bb4 {[%clk 0:02:42]}  h6 {[%clk 0:02:36]} 18. Ra7 {[%clk 0:02:35]}  Be6 {[%clk 0:02:29]} 19. Qc2 {[%clk 0:02:32]}  Rc8 {[%clk 0:02:26]} 20. Qa2 {[%clk 0:02:30]}  b5 {[%clk 0:02:02]} 21. Na5 {[%clk 0:02:24]}  Bb6 {[%clk 0:02:01]} 22. Ra6 {[%clk 0:02:20]}  Ra8 {[%clk 0:01:57]} 23. Nc6 {[%clk 0:02:00]}  Qc8 {[%clk 0:01:44]} 24. Rxa8 {[%clk 0:01:57]}  Qxa8 {[%clk 0:01:45]} 25. Qxa8 {[%clk 0:01:56]}  Rxa8 {[%clk 0:01:46]} 26. Nfxe5 {[%clk 0:01:43]}  Nxe5 {[%clk 0:01:46]} 27. Nxe5 {[%clk 0:01:44]}  Bxb3 {[%clk 0:01:47]} 28. Rb1 {[%clk 0:01:42]}  Bc2 {[%clk 0:01:39]} 29. Rb2 {[%clk 0:01:41]}  Ra1+ {[%clk 0:01:39]} 30. Bf1 {[%clk 0:01:42]}  Ba4 {[%clk 0:01:34]} 31. Kg2 {[%clk 0:01:38]}  g5 {[%clk 0:01:22]} 32. Be2 {[%clk 0:01:38]}  h5 {[%clk 0:01:18]} 33. Be7 {[%clk 0:01:19]}  Ba5 {[%clk 0:00:50]} 34. Bxf6 {[%clk 0:01:19]}  Bc3 {[%clk 0:00:50]} 35. Rxb5 {[%clk 0:01:19]}  Bxb5 {[%clk 0:00:51]} 36. Bxh5 {[%clk 0:01:20]}  Be8 {[%clk 0:00:33]} 37. Bxg5 {[%clk 0:01:14]}  Ra2 {[%clk 0:00:33]} 38. Ng4 {[%clk 0:01:12]}  Bb5 {[%clk 0:00:30]} 39. Ne5 {[%clk 0:00:57]}  Be1 {[%clk 0:00:29]} 40. Bxf7+ {[%clk 0:00:57]}  Kg7 {[%clk 0:00:29]} 41. Bxa2 {[%clk 0:00:57]} 1-0


[Site "https://www.chess.com"]

[Event "Titled Tuesday Blitz March 21 Late 2023"]
[White "Terry, Renato"]
[Black "benny_aizenberg"]
[WhiteFideId "3803457"]
[WhiteElo "2579"]
[BlackElo "2619"]
[Result "1-0"]
[Round "06"]
[TimeControl "180+2"]
[Date "2023.03.21"]
[WhiteClock "0:02:52"]
[BlackClock "0:02:41"]

1. e4 {[%clk 0:03:00]}  c5 {[%clk 0:02:58]} 2. Nf3 {[%clk 0:03:01]}  e6 {[%clk 0:02:58]} 3. Nc3 {[%clk 0:03:01]}  Nc6 {[%clk 0:02:58]} 4. Bb5 {[%clk 0:03:01]}  Nd4 {[%clk 0:02:56]} 5. O-O {[%clk 0:03:01]}  a6 {[%clk 0:02:56]} 6. Bd3 {[%clk 0:03:01]}  Nc6 {[%clk 0:02:56]} 7. e5 {[%clk 0:02:59]}  d5 {[%clk 0:02:50]} 8. exd6 {[%clk 0:02:59]}  Bxd6 {[%clk 0:02:50]} 9. Be4 {[%clk 0:02:56]}  Bd7 {[%clk 0:02:43]} 10. d4 {[%clk 0:02:53]}  cxd4 {[%clk 0:02:43]} 11. Nxd4 {[%clk 0:02:53]}  Bxh2+ {[%clk 0:02:41]} 12. Kxh2 {[%clk 0:02:52]}  Qh4+ {[%clk 0:02:41]} 13. Kg1 {[%clk 0:02:52]}  Qxe4 {[%clk 0:02:41]} 14. Nxe4 {[%clk 0:02:52]} 1-0


[Site "https://www.chess.com"]

[Event "Titled Tuesday Blitz March 21 Late 2023"]
[White "Drygalov, Sergey"]
[Black "Sivakumar, Shaaketh"]
[WhiteFideId "24171743"]
[BlackFideId "30940176"]
[WhiteElo "2533"]
[BlackElo "2174"]
[Result "1/2-1/2"]
[Round "06"]
[TimeControl "180+2"]
[Date "2023.03.21"]
[WhiteClock "0:00:14"]
[BlackClock "0:00:21"]

1. d4 {[%clk 0:02:39]}  e6 {[%clk 0:03:00]} 2. c4 {[%clk 0:02:39]}  b6 {[%clk 0:03:00]} 3. f3 {[%clk 0:02:38]}  Bb7 {[%clk 0:02:59]} 4. e4 {[%clk 0:02:39]}  f5 {[%clk 0:02:59]} 5. exf5 {[%clk 0:02:39]}  Nh6 {[%clk 0:03:00]} 6. fxe6 {[%clk 0:02:35]}  Nf5 {[%clk 0:02:59]} 7. Ne2 {[%clk 0:02:28]}  Bd6 {[%clk 0:02:57]} 8. h4 {[%clk 0:02:13]}  dxe6 {[%clk 0:02:53]} 9. Bg5 {[%clk 0:02:12]}  Qd7 {[%clk 0:02:51]} 10. Nbc3 {[%clk 0:02:12]}  O-O {[%clk 0:02:51]} 11. Qd2 {[%clk 0:02:09]}  Nc6 {[%clk 0:02:42]} 12. O-O-O {[%clk 0:02:09]}  Ba6 {[%clk 0:02:41]} 13. g4 {[%clk 0:01:57]}  Ng3 {[%clk 0:02:31]} 14. Nxg3 {[%clk 0:01:56]}  Bxg3 {[%clk 0:02:31]} 15. Ne4 {[%clk 0:01:46]}  Bd6 {[%clk 0:02:17]} 16. Be2 {[%clk 0:01:38]}  Nb4 {[%clk 0:02:13]} 17. Kb1 {[%clk 0:01:36]}  Qa4 {[%clk 0:02:01]} 18. a3 {[%clk 0:01:32]}  Nc6 {[%clk 0:01:58]} 19. Qc2 {[%clk 0:01:32]}  Qxc2+ {[%clk 0:01:54]} 20. Kxc2 {[%clk 0:01:33]}  Bf4 {[%clk 0:01:52]} 21. b4 {[%clk 0:01:26]}  Bb7 {[%clk 0:01:50]} 22. b5 {[%clk 0:01:19]}  Na5 {[%clk 0:01:47]} 23. Be7 {[%clk 0:01:14]}  Rf7 {[%clk 0:01:43]} 24. Bb4 {[%clk 0:01:14]}  Rd8 {[%clk 0:01:28]} 25. Bc3 {[%clk 0:00:59]}  c6 {[%clk 0:01:03]} 26. Bxa5 {[%clk 0:00:50]}  bxa5 {[%clk 0:01:04]} 27. Nc5 {[%clk 0:00:51]}  cxb5 {[%clk 0:01:03]} 28. Nxe6 {[%clk 0:00:51]}  Rc8 {[%clk 0:01:01]} 29. Nxf4 {[%clk 0:00:33]}  Rxf4 {[%clk 0:01:02]} 30. c5 {[%clk 0:00:33]}  Bxf3 {[%clk 0:00:59]} 31. Rhf1 {[%clk 0:00:31]}  Be4+ {[%clk 0:00:54]} 32. Kc3 {[%clk 0:00:30]}  Rxf1 {[%clk 0:00:47]} 33. Rxf1 {[%clk 0:00:31]}  Bc6 {[%clk 0:00:47]} 34. Rf5 {[%clk 0:00:25]}  Re8 {[%clk 0:00:46]} 35. Re5 {[%clk 0:00:21]}  Rxe5 {[%clk 0:00:44]} 36. dxe5 {[%clk 0:00:22]}  Kf7 {[%clk 0:00:44]} 37. Kd4 {[%clk 0:00:21]}  b4 {[%clk 0:00:42]} 38. Bc4+ {[%clk 0:00:20]}  Ke7 {[%clk 0:00:42]} 39. Bd3 {[%clk 0:00:17]}  bxa3 {[%clk 0:00:41]} 40. Kc3 {[%clk 0:00:17]}  h5 {[%clk 0:00:37]} 41. gxh5 {[%clk 0:00:15]}  Bd5 {[%clk 0:00:34]} 42. Bf5 {[%clk 0:00:13]}  Kd8 {[%clk 0:00:29]} 43. Bg4 {[%clk 0:00:10]}  Kc7 {[%clk 0:00:29]} 44. e6 {[%clk 0:00:06]}  Kc6 {[%clk 0:00:26]} 45. e7 {[%clk 0:00:06]}  Bf7 {[%clk 0:00:26]} 46. Be6 {[%clk 0:00:05]}  Be8 {[%clk 0:00:26]} 47. Kd4 {[%clk 0:00:06]}  a4 {[%clk 0:00:21]} 48. Bd5+ {[%clk 0:00:02]}  Kd7 {[%clk 0:00:20]} 49. Kc3 {[%clk 0:00:01]}  Kxe7 {[%clk 0:00:20]} 50. Kb4 {[%clk 0:00:02]}  Bf7 {[%clk 0:00:17]} 51. Bxf7 {[%clk 0:00:01]}  Kxf7 {[%clk 0:00:18]} 52. Kxa3 {[%clk 0:00:01]}  Ke7 {[%clk 0:00:18]} 53. Kxa4 {[%clk 0:00:02]}  Kd7 {[%clk 0:00:18]} 54. Kb5 {[%clk 0:00:03]}  Kc7 {[%clk 0:00:19]} 55. Kb4 {[%clk 0:00:02]}  Kc6 {[%clk 0:00:19]} 56. Kc4 {[%clk 0:00:03]}  a5 {[%clk 0:00:20]} 57. Kd4 {[%clk 0:00:04]}  a4 {[%clk 0:00:15]} 58. Kc4 {[%clk 0:00:04]}  a3 {[%clk 0:00:15]} 59. Kb3 {[%clk 0:00:04]}  Kxc5 {[%clk 0:00:16]} 60. Kxa3 {[%clk 0:00:05]}  Kd4 {[%clk 0:00:16]} 61. Kb3 {[%clk 0:00:05]}  Ke4 {[%clk 0:00:17]} 62. Kc3 {[%clk 0:00:06]}  Kf4 {[%clk 0:00:17]} 63. Kd3 {[%clk 0:00:06]}  Kg4 {[%clk 0:00:18]} 64. h6 {[%clk 0:00:07]}  gxh6 {[%clk 0:00:17]} 65. Ke2 {[%clk 0:00:07]}  Kxh4 {[%clk 0:00:16]} 66. Kf2 {[%clk 0:00:08]}  Kh3 {[%clk 0:00:16]} 67. Kg1 {[%clk 0:00:09]}  Kg3 {[%clk 0:00:17]} 68. Kh1 {[%clk 0:00:10]}  h5 {[%clk 0:00:18]} 69. Kg1 {[%clk 0:00:11]}  h4 {[%clk 0:00:18]} 70. Kh1 {[%clk 0:00:12]}  h3 {[%clk 0:00:19]} 71. Kg1 {[%clk 0:00:13]}  h2+ {[%clk 0:00:20]} 72. Kh1 {[%clk 0:00:14]}  Kh3 {[%clk 0:00:21]} 1/2-1/2


[Site "https://www.chess.com"]

[Event "Titled Tuesday Blitz March 21 Late 2023"]
[White "Yeletsky, Ivan"]
[Black "Ambartsumova, Karina"]
[WhiteFideId "24180327"]
[BlackFideId "4166299"]
[WhiteElo "2414"]
[BlackElo "2300"]
[Result "1-0"]
[Round "06"]
[TimeControl "180+2"]
[Date "2023.03.21"]
[WhiteClock "0:01:10"]
[BlackClock "0:00:02"]

1. e4 {[%clk 0:03:00]}  c5 {[%clk 0:02:59]} 2. Nf3 {[%clk 0:03:00]}  e6 {[%clk 0:02:59]} 3. g3 {[%clk 0:02:59]}  Nc6 {[%clk 0:02:59]} 4. Bg2 {[%clk 0:03:00]}  Qc7 {[%clk 0:03:00]} 5. Nc3 {[%clk 0:02:57]}  Nf6 {[%clk 0:02:59]} 6. O-O {[%clk 0:02:57]}  Be7 {[%clk 0:02:57]} 7. d4 {[%clk 0:02:30]}  cxd4 {[%clk 0:02:57]} 8. Nb5 {[%clk 0:02:30]}  Qb8 {[%clk 0:02:36]} 9. Nfxd4 {[%clk 0:02:18]}  a6 {[%clk 0:02:14]} 10. Nc3 {[%clk 0:02:18]}  h5 {[%clk 0:02:06]} 11. h3 {[%clk 0:02:08]}  Bc5 {[%clk 0:02:02]} 12. Be3 {[%clk 0:02:06]}  Be7 {[%clk 0:01:17]} 13. Na4 {[%clk 0:01:57]}  Ne5 {[%clk 0:01:08]} 14. Nb6 {[%clk 0:01:55]}  Ra7 {[%clk 0:01:04]} 15. Nxe6 {[%clk 0:01:44]}  dxe6 {[%clk 0:00:54]} 16. Nxc8 {[%clk 0:01:45]}  b6 {[%clk 0:00:52]} 17. Nxa7 {[%clk 0:01:43]}  Qxa7 {[%clk 0:00:50]} 18. Qd4 {[%clk 0:01:41]}  Nfd7 {[%clk 0:00:45]} 19. Rad1 {[%clk 0:01:40]}  Qc7 {[%clk 0:00:40]} 20. b3 {[%clk 0:01:16]}  h4 {[%clk 0:00:31]} 21. g4 {[%clk 0:01:15]}  Bc5 {[%clk 0:00:16]} 22. Qc3 {[%clk 0:01:11]}  Nxg4 {[%clk 0:00:09]} 23. hxg4 {[%clk 0:01:12]}  h3 {[%clk 0:00:09]} 24. Bf3 {[%clk 0:01:10]}  Ne5 {[%clk 0:00:06]} 25. Bxc5 {[%clk 0:01:10]}  bxc5 {[%clk 0:00:03]} 26. Kh1 {[%clk 0:01:10]}  h2 {[%clk 0:00:02]} 27. Be2 {[%clk 0:01:10]} 1-0


[Site "https://www.chess.com"]